[Event "III GM Brena Baja-La Palma 2022"]
[Site "La Palma"]
[Date "2022.04.12"]
[Round "7.2"]
[White "Petkov, Vladimir"]
[Black "Zwirs, Nico"]
[Result "0-1"]
[ECO "D36"]
[WhiteElo "2491"]
[BlackElo "2461"]
[Annotator "TA"]
[PlyCount "68"]
[EventDate "2022.04.01"]
[EventType "tourn"]
[EventCountry "ESP"]
[SourceTitle "playchess.com"]
[Source "ChessBase"]
[SourceQuality "1"]
[TimeControl "5400+30"]

{[%evp 20,68,23,0,4,0,7,-23,13,8,20,21,56,8,8,0,0,0,1,12,108,110,84,-13,49,50,59,0,0,-57,-62,-90,-90,-471,-465,-508,-464,-672,-676,-675,-674,-637,-568,-981,-979,-965,-965,-967,-878,-954,-897]} 1. d4 {[%emt 0:00:20]} Nf6 {[%emt 0:00:07]} 2. c4 {[%emt 0:00:59]} e6 {[%emt 0:00:06]} 3. Nc3 {[%emt 0:00:59]} d5 {[%emt 0:00:06]} 4. cxd5 {[%emt 0:00:33]} exd5 {[%emt 0:00:03]} 5. Bg5 {[%emt 0:01:12]} c6 {[%emt 0:00:07]} 6. Qc2 {[%emt 0:00:55]} Be7 {[%emt 0:01:32]} 7. e3 {[%emt 0:00:56]} O-O {[%emt 0:00:32]} 8. Bd3 {[%emt 0:00:17]} h6 {[%emt 0:00:08]} 9. Bh4 {[%emt 0:00:21]} Re8 {[%emt 0:00:10]} 10. Nge2 {[%emt 0:03:13]} Nbd7 {[%emt 0:00:49]} 11. f3 {[%emt 0:00:41]} b5 $1 {[%emt 0:00:30][%mdl 4] outshines the older 11...c5. D36: Queen's Gambit Declined: Exchange Variation: Main line (5 Bg5 c6 6 Qc2).} 12. O-O {[%emt 0:01:47]} Nb6 {[%emt 0:01:16] [#]} 13. e4 $146 {[%emt 0:02:18]} ({Predecessor:} 13. Rad1 Bd7 14. Kh1 Rc8 15. a3 a5 16. Qd2 b4 17. axb4 axb4 18. Na2 c5 19. dxc5 Bxc5 {0-1 (70) So,W (2772)-Firouzja,A (2759) chess24.com INT 2021}) 13... dxe4 {[%emt 0:00:49] Black has an edge.} (13... b4 $5 {[%cal Rb4c3]} 14. e5 bxc3 15. exf6 Bxf6 16. Bxf6 Qxf6 $11) 14. fxe4 {[%emt 0:02:23]} Ng4 {[%emt 0:12:34]} 15. Bxe7 {[%emt 0:08:47]} Qxe7 {[%emt 0:02:47]} 16. Rf3 {[%emt 0:00:54] Prevents Ne3.} (16. Rf4 $14) 16... b4 $11 {[%emt 0:03:31]} 17. Nd1 {[%emt 0:02:05]} c5 $1 {[%emt 0:04:53]} ({Don't do} 17... Qh4 18. h3 $16) 18. h3 {[%emt 0:04:34]} Nf6 {[%emt 0:10:12][%cal Oc5c4]} 19. e5 {[%emt 0:08:35]} Nfd7 {[%emt 0:02:48]} (19... Nfd5 $11 {remains equal.}) 20. e6 $16 {[%emt 0:25:29]} fxe6 {[%emt 0:03:47]} 21. Bh7+ {[%emt 0:01:01]} Kh8 {[%emt 0:00:24]} 22. Nf4 {[%emt 0:01:35] [#] Intending Ng6+ and mate.} Nf8 {[%emt 0:00:45] Threatens to win with ...Bb7.} 23. dxc5 {[%emt 0:00:21]} Bb7 $11 {[%emt 0:09:36]} 24. Re3 {[%emt 0:11:02]} Rac8 $15 {[%emt 0:06:32]} 25. Rc1 {[%emt 0:04:39]} Nbd7 {[%emt 0:05:43]} 26. Ng6+ $2 {[%emt 0:08:42][%mdl 8192] Loses the game.} (26. Be4 $17 {was the crucial defense.} Rxc5 27. Qd2 Rxc1 28. Qxc1 Bxe4 29. Rxe4) 26... Nxg6 $19 {[%emt 0:00:30] Black is clearly winning.} 27. Bxg6 {[%emt 0:00:02]} Rxc5 {[%emt 0:01:33]} 28. Qxc5 {[%emt 0:01:05]} (28. Nc3 $142 Rec8 29. Be4 bxc3 30. bxc3 Bxe4 31. Qxe4) 28... Nxc5 {[%emt 0:00:52]} 29. Bxe8 {[%emt 0:00:05]} Qxe8 {[%emt 0:04:25]} 30. Rxc5 {[%emt 0:00:09]} Qg6 {[%emt 0:00:25][%csl Gb7][%cal Rg6g2] [#] Inhibits Rc2.} 31. g4 {[%emt 0:06:21]} Qb1 {[%emt 0:00:19][%csl LRa2,LRd1]} 32. Re1 {[%emt 0:00:07]} Qd3 {[%emt 0:02:10] ( -> ...Qg3+)} 33. Ne3 {[%emt 0:00:07]} Qd6 {[%emt 0:00:11]} 34. Rc2 {[%emt 0:01:58]} Qg3+ {[%emt 0:00:08] Weighted Error Value: White=0.90/Black=0.11 (very precise)} 0-1

[Event "III GM Brena Baja-La Palma 2022"]
[Site "La Palma"]
[Date "2022.04.12"]
[Round "7.3"]
[White "Kurajica, Bojan"]
[Black "Herrera Reyes, Jose Antonio"]
[Result "1-0"]
[ECO "D02"]
[WhiteElo "2519"]
[BlackElo "2319"]
[Annotator "TA"]
[PlyCount "61"]
[EventDate "2022.04.01"]
[EventType "tourn"]
[EventCountry "ESP"]
[SourceTitle "playchess.com"]
[Source "ChessBase"]
[SourceQuality "1"]
[TimeControl "5400+30"]

{[%evp 9,61,-11,0,0,0,-22,12,29,80,76,68,46,53,55,54,20,183,192,193,177,272,275,256,196,301,320,359,350,410,307,492,409,521,520,969,699,690,705,694,683,675,665,732,725,709,701,963,934,823,756,750,733,714,690]} 1. Nf3 {[%emt 0:00:08]} Nf6 {[%emt 0:01:15]} 2. d4 {[%emt 0:00:10]} c5 {[%emt 0:00:12]} 3. c3 {[%emt 0:01:42]} d5 {[%emt 0:01:44]} 4. dxc5 {[%emt 0:01:13]} e6 {[%emt 0:00:24]} 5. Be3 {[%emt 0:02:31]} Qc7 {[%emt 0:04:04][%mdl 1024] Black has compensation.} 6. b4 {[%emt 0:03:05] D02: 1 d4 d5 2 Nf3 sidelines, including 2...Nf6 3 g3 and 2...Nf6 3 Bf4.} a5 {[%emt 0:04:07] [#]} 7. a3 $146 {[%emt 0:19:55]} ({Predecessor:} 7. Nbd2 Nbd7 8. a3 Be7 9. Bg5 O-O 10. e3 h6 11. Bh4 b6 12. Bg3 e5 13. c6 Qxc6 {1-0 (47) Sadhwani,R (2616)-Michelakos,P (2280) Chess.com INT 2022}) 7... e5 {[%emt 0:22:29]} 8. Bg5 {[%emt 0:08:03] The position is equal.} Be6 {[%emt 0:27:36]} (8... Be7 $11 {remains equal.}) 9. Bxf6 $16 {[%emt 0:00:20]} gxf6 {[%emt 0:00:01]} 10. e3 {[%emt 0:08:49]} (10. Nbd2 $5 {[%cal Re2e4]}) 10... b6 {[%emt 0:04:59]} 11. Bb5+ {[%emt 0:05:40]} Nd7 $1 {[%emt 0:00:19]} 12. c4 {[%emt 0:14:54]} (12. c6 $5 {[%cal Rc6d7]} Nb8 13. O-O $11) 12... axb4 $2 {[%emt 0:01:21] [#] Loses the game.} (12... dxc4 $11 {and Black has nothing to worry.} 13. Nbd2 axb4) 13. cxd5 $18 {[%emt 0:00:26]} Bg4 {[%emt 0:00:12]} 14. Bc6 {[%emt 0:06:26]} Ra5 {[%emt 0:06:38]} (14... Ra7 $142) 15. cxb6 {[%emt 0:04:09]} Qxb6 {[%emt 0:00:42]} 16. a4 {[%emt 0:03:24]} b3 {[%emt 0:10:29]} (16... Bg7 $142 17. h3 Bh5) 17. O-O {[%emt 0:05:52]} Rg8 {[%emt 0:00:53]} 18. Nbd2 {[%emt 0:01:17]} b2 {[%emt 0:02:30] [#] White must now prevent ...Bh3.} 19. Rb1 {[%emt 0:00:15][%cal Ba1b1,Bb1b2,Bb2b7,Bb7d7,Bd7d6][%mdl 32]} Qb4 $2 {[%emt 0:00:07]} (19... Rc5 {was called for.} 20. a5 Qb4) 20. g3 {[%emt 0:05:34]} e4 {[%emt 0:01:04]} 21. Qc2 {[%emt 0:00:07][%csl LRb2,LRe4] White is clearly winning.} Bxf3 {[%emt 0:04:53]} (21... Rc5 $142 22. Qxb2 Qxb2 23. Rxb2 exf3) 22. Nxf3 {[%emt 0:01:55]} Rc5 {[%emt 0:04:12]} 23. Qxb2 {[%emt 0:00:52]} Qxb2 {[%emt 0:01:12]} 24. Rxb2 {[%emt 0:00:05]} exf3 {[%emt 0:00:35]} 25. Rb7 {[%emt 0:01:56]} Be7 {[%emt 0:00:17]} 26. Rxd7 {[%emt 0:00:36]} Kf8 {[%emt 0:00:28]} 27. a5 {[%emt 0:01:57][%cal Ba4a5,Ba5a6][%mdl 32]} Rg4 {[%emt 0:00:41]} 28. a6 {[%emt 0:00:25]} Ra5 {[%emt 0:00:27]} 29. d6 {[%emt 0:00:13]} Bxd6 {[%emt 0:00:06]} 30. Rxd6 {[%emt 0:00:09]} Rxa6 {[%emt 0:00:01]} 31. Rd8+ {[%emt 0:00:21] Weighted Error Value: White=0.34/Black=0.53} 1-0

[Event "III GM Brena Baja-La Palma 2022"]
[Site "La Palma"]
[Date "2022.04.13"]
[Round "8.2"]
[White "Strikovic, Aleksa"]
[Black "Kurajica, Bojan"]
[Result "1/2-1/2"]
[ECO "E18"]
[WhiteElo "2486"]
[BlackElo "2519"]
[Annotator "TA"]
[PlyCount "41"]
[EventDate "2022.04.01"]
[EventType "tourn"]
[EventCountry "ESP"]
[SourceTitle "playchess.com"]
[Source "ChessBase"]
[SourceQuality "1"]
[TimeControl "5400+30"]

{[%evp 23,24,15,20]} 1. Nf3 {[%emt 0:00:05]} d5 {[%emt 0:00:07]} 2. d4 {[%emt 0:00:07]} e6 {[%emt 0:00:06]} 3. g3 {[%emt 0:00:06]} Nf6 {[%emt 0:00:06]} 4. Bg2 {[%emt 0:00:04]} Be7 {[%emt 0:00:07]} 5. O-O {[%emt 0:00:07]} O-O {[%emt 0:00:06]} 6. c4 {[%emt 0:00:04]} b6 {[%emt 0:00:08]} 7. cxd5 {[%emt 0:00:09]} exd5 {[%emt 0:00:12]} 8. Nc3 {[%emt 0:00:05]} Bb7 {[%emt 0:00:05]} 9. Bf4 {[%emt 0:00:06]} Na6 {[%emt 0:00:06]} 10. Rc1 {[%emt 0:00:08]} c5 {[%emt 0:00:07]} 11. dxc5 {[%emt 0:00:20] 11.Ne5 is the modern continuation.} Nxc5 {[%emt 0:00:13]} 12. Nd4 {[%emt 0:00:07]} Qd7 {[%emt 0:00:16] [#]} {Predecessor:} 13. b4 $146 {E18: Queen's Indian: Old Main Line (4 g3 Bb7 5 Bg2 Be7 6 0-0 0-0 7 Nc3).} Ne6 14. Nxe6 Qxe6 15. Nb5 Rac8 16. Nd4 Qd7 17. Qb3 b5 18. Nf3 Bd6 19. Ne5 Qe7 20. Nd3 Bxf4 21. Nxf4 {0-1 (28) Piotrowski,P (2269)-Lewicki,M (2347) Krakow 2019} 1/2-1/2

[Event "III GM Brena Baja-La Palma 2022"]
[Site "La Palma"]
[Date "2022.04.13"]
[Round "8.3"]
[White "Zwirs, Nico"]
[Black "Pulvett Marin, Daniel Eduardo"]
[Result "1/2-1/2"]
[ECO "C54"]
[WhiteElo "2461"]
[BlackElo "2499"]
[Annotator "TA"]
[PlyCount "85"]
[EventDate "2022.04.01"]
[EventType "tourn"]
[EventCountry "ESP"]
[SourceTitle "playchess.com"]
[Source "ChessBase"]
[SourceQuality "1"]
[TimeControl "5400+30"]

{[%evp 12,85,24,10,7,8,14,10,12,10,9,3,4,-7,-11,-2,-10,-14,-27,-11,0,-7,0,-1,0,0,150,124,210,211,199,194,205,208,503,504,478,0,0,0,0,0,9,0,0,0,18,8,8,2,33,29,41,6,12,0,0,0,0,0,0,0,0,0,0,0,0,-3,0,0,0,0,0,-8,-4,-8]} 1. e4 {[%emt 0:00:15]} e5 {[%emt 0:00:27]} 2. Nf3 {[%emt 0:00:12]} Nc6 {[%emt 0:00:01]} 3. Bc4 {[%emt 0:00:07]} Bc5 {[%emt 0:00:16]} 4. d3 {[%emt 0:00:21]} Nf6 {[%emt 0:00:33]} 5. O-O {[%emt 0:00:08]} d6 {[%emt 0:00:31]} 6. c3 O-O {[%emt 0:00:36]} 7. Re1 a5 {[%emt 0:01:52] C54: Giuoco Piano: 4 c3 Nf6, main lines with 5 d4 and 5 d3.} 8. h3 h6 {[%emt 0:01:56]} 9. Nbd2 Be6 {[%emt 0:01:07]} 10. Bb5 Qb8 {[%emt 0:00:53]} 11. Nf1 Qa7 {[%emt 0:01:15]} 12. d4 exd4 {[%emt 0:01:38]} 13. Bxc6 {[%cal Rc3d4]} dxc3 {[%emt 0:01:36]} 14. Ba4 $1 {aiming for Qc2.} Bxf2+ {[%emt 0:00:19]} 15. Kh2 Bxe1 {[%emt 0:00:33]} 16. Qxe1 d5 {[%emt 0:00:27] [#]} 17. e5 $146 ({Predecessor:} 17. Be3 Qa6 18. e5 Ne4 19. bxc3 Qc4 20. Bb3 Qxc3 21. N1d2 a4 22. Rc1 Qa5 23. Bc2 {½-½ (60) Alekseenko,K (2671)-Ding,L (2811) Khanty-Mansiysk 2019}) 17... Ne4 {[%emt 0:00:27]} 18. bxc3 {[%cal Bb2c3,Bc3c4][%mdl 32]} c5 {[%emt 0:12:00]} (18... Qc5 $11) 19. c4 $16 {[%mdl 1024] White has strong compensation.} ({Don't play} 19. Ng3 f5 $16) 19... f5 {[%emt 0:15:37]} (19... Qb6 $16) 20. exf6 $1 $18 Qb8+ {[%emt 0:18:47]} 21. Kh1 {Threatens to win with fxg7. Chess con chili.} Rxf6 {[%emt 0:08:26][%cal Ob7b5] [#]} 22. Bb2 $1 ({Resist} 22. Bc2 $6 Qf8 23. N1h2 (23. Bxe4 dxe4 24. Qxe4 Bxh3 $11) 23... Re8 $14) 22... Rf5 {[%emt 0:27:26]} (22... Qf4 {keeps fighting.} 23. Bxf6 Qxf6) 23. cxd5 Bxd5 {[%emt 0:05:49] [#]} 24. Bc2 $2 {This bishop pair is nice.} (24. Rd1 $1 $18 {[%cal Rd1d5]} Bc6 25. Bxc6 bxc6 26. Qxe4 Rxf3 27. Be5 Rxf1+ 28. Rxf1) 24... Rxf3 $1 $11 {[%emt 0:44:50]} 25. Bxe4 Bxe4 {[%emt 0:04:13]} (25... Rxf1+ $2 26. Qxf1 Bxe4 27. Qc4+ Kh8 28. Qxe4 $18) 26. gxf3 Bxf3+ 27. Kg1 Ra6 {Inhibits Qe6+. ...Rg6+ is the strong threat.} 28. Qg3 {Inhibits Rg6.} Qxg3+ 29. Nxg3 a4 {[%emt 0:24:11]} 30. Kf2 a3 {[%emt 0:03:57] [#]} 31. Bxg7 Bd5 {[%emt 0:00:59]} 32. Bc3 b5 {[%emt 0:02:50] The position is equal.} 33. Nh5 {Strongly threatening Nf6+.} Kf7 {[%emt 0:02:17] Inhibits Nf6.} 34. Nf4 Bc4 35. Ke3 b4 36. Be5 Ra8 {[%emt 0:08:20]} 37. Rc1 Bxa2 {[%emt 0:06:56]} 38. Rxc5 Ra7 {[%emt 0:00:40]} 39. Rb5 b3 {And now ...Re7 would win.} 40. Nd3 b2 {[%emt 0:04:27]} 41. Bxb2 axb2 {[%emt 0:01:42]} 42. Nxb2 Be6 {[%emt 0:01:13]} 43. h4 {Blacks defense is rewarded with a draw.  Weighted Error Value: White=0.16 (very precise) /Black=0.20 (precise)} 1/2-1/2

[Event "III GM Brena Baja-La Palma 2022"]
[Site "La Palma"]
[Date "2022.04.14"]
[Round "9.1"]
[White "Zwirs, Nico"]
[Black "Strikovic, Aleksa"]
[Result "1/2-1/2"]
[ECO "C55"]
[WhiteElo "2461"]
[BlackElo "2486"]
[Annotator "TA"]
[PlyCount "56"]
[EventDate "2022.04.01"]
[EventType "tourn"]
[EventCountry "ESP"]
[SourceTitle "playchess.com"]
[Source "ChessBase"]
[SourceQuality "1"]
[TimeControl "5400+30"]

{[%evp 13,56,32,32,25,25,18,21,27,18,15,18,11,15,14,28,26,29,0,18,14,46,28,27,10,0,0,5,10,15,0,16,0,7,0,0,0,0,0,0,0,0,0,0,-97,9]} 1. e4 {[%emt 0:00:02]} e5 {[%emt 0:00:07]} 2. Nf3 {[%emt 0:00:08]} Nc6 {[%emt 0:00:06]} 3. Bc4 {[%emt 0:00:09]} Nf6 {[%emt 0:00:11]} 4. d3 {[%emt 0:00:19]} Be7 {[%emt 0:00:16]} 5. O-O {[%emt 0:00:08]} O-O {[%emt 0:00:25]} 6. Re1 {[%emt 0:00:07]} d6 {[%emt 0:00:09]} 7. a4 $1 {[%emt 0:00:07] 7.a4 is better than 7.c3.} h6 {[%emt 0:00:06]} 8. Nbd2 {[%emt 0:00:48] C55: Two Knights: 4 d3, 4 d4 exd4 5 e5 and Max Lange Attack.} Na5 {[%emt 0:00:53]} 9. Ba2 {[%emt 0:00:15]} c5 {[%emt 0:00:07]} 10. c3 {[%emt 0:15:44] The position is equal.} Nc6 {[%emt 0:07:16]} 11. Nc4 {[%emt 0:01:44]} Be6 {[%emt 0:01:46]} 12. Bd2 {[%emt 0:01:19]} a6 {[%emt 0:03:08]} 13. Ne3 {[%emt 0:12:28]} Re8 {[%emt 0:01:49] [#]} 14. Bxe6 $146 {[%emt 0:04:21]} ({Predecessor:} 14. h3 Bxa2 15. Rxa2 d5 16. exd5 Nxd5 17. Nc4 Bd6 18. Qb3 Rb8 19. Nxd6 Qxd6 20. a5 {0-1 (61) Mencinger,V (2356)-Stefanov,E (2484) Zadar 2016}) 14... fxe6 {[%emt 0:00:06]} 15. Nc4 {[%emt 0:01:28]} b5 {[%emt 0:05:59]} 16. Na3 {[%emt 0:02:58]} Na7 {[%emt 0:21:48]} 17. h3 {[%emt 0:14:49]} Qd7 {[%emt 0:02:05]} 18. b4 {[%emt 0:10:36]} cxb4 {[%emt 0:03:03]} 19. cxb4 {[%emt 0:00:01]} Rab8 {[%emt 0:00:43]} 20. axb5 {[%emt 0:00:23]} axb5 {[%emt 0:00:02]} 21. Qb3 {[%emt 0:04:45]} Nc6 {[%emt 0:00:49]} 22. Nc2 {[%emt 0:00:05]} Bf8 {[%emt 0:02:10]} 23. d4 {[%emt 0:00:12]} exd4 {[%emt 0:01:33]} 24. Ncxd4 {[%emt 0:00:04]} Nxd4 {[%emt 0:00:23]} 25. Nxd4 {[%emt 0:00:02]} d5 {[%emt 0:00:58]} 26. exd5 {[%emt 0:08:16]} Qxd5 {[%emt 0:00:19]} 27. Qxd5 {[%emt 0:00:35]} Nxd5 {[%emt 0:00:07]} 28. Nf3 {[%emt 0:07:35]} (28. Ra5 $11) 28... Nf6 {Weighted Error Value: White=0.16 (very precise) /Black=0.03 (flawless)} (28... Bxb4 $17 29. Bxb4 Nxb4) 1/2-1/2

[Event "III GM Brena Baja-La Palma 2022"]
[Site "La Palma"]
[Date "2022.04.14"]
[Round "9.2"]
[White "Pulvett Marin, Daniel Eduardo"]
[Black "Herrera Reyes, Jose Antonio"]
[Result "1/2-1/2"]
[WhiteElo "2499"]
[BlackElo "2319"]
[Annotator "TA"]
[PlyCount "31"]
[EventDate "2022.04.01"]
[EventType "tourn"]
[EventCountry "ESP"]
[SourceTitle "playchess.com"]
[Source "ChessBase"]
[SourceQuality "1"]
[TimeControl "5400+30"]

{[%evp 12,18,33,37,29,17,29,16,29]} 1. d4 {[%emt 0:23:03]} Nf6 {[%emt 0:00:14]} 2. c4 {[%emt 0:00:12]} e6 {[%emt 0:00:12]} 3. Nf3 {[%emt 0:00:12]} d5 {[%emt 0:00:15]} 4. Nc3 {[%emt 0:00:21]} Be7 {[%emt 0:00:41]} 5. Bg5 {[%emt 0:00:19]} O-O {[%emt 0:01:13]} 6. e3 {[%emt 0:00:23]} a6 {[%emt 0:00:43]} 7. cxd5 {[%emt 0:00:30]} exd5 {[%emt 0:00:42] D55: Queen's Gambit Declined: 4 Bg5 Be7: Lines without ...h6 and 6...h6 7 Bxf6.} 8. Bd3 {[%emt 0:00:19]} h6 {[%emt 0:00:23]} 9. Bh4 {[%emt 0:00:22]} Bg4 {[%emt 0:02:23] [#] An uneventful encounter.} {Predecessor:} 10. h3 $146 Be6 11. O-O c5 12. dxc5 Bxc5 13. Rc1 Be7 14. Nd4 Nc6 15. Nxc6 bxc6 16. Na4 {1-0 (104) Zazuliak,A (2239)-Goroshkov,M (1970) Omelnyk 2021} 1/2-1/2

[Event "III GM Brena Baja-La Palma 2022"]
[Site "La Palma"]
[Date "2022.04.14"]
[Round "9.3"]
[White "Petkov, Vladimir"]
[Black "Kurajica, Bojan"]
[Result "1/2-1/2"]
[ECO "D58"]
[WhiteElo "2491"]
[BlackElo "2519"]
[Annotator "TA"]
[PlyCount "39"]
[EventDate "2022.04.01"]
[EventType "tourn"]
[EventCountry "ESP"]
[SourceTitle "playchess.com"]
[Source "ChessBase"]
[SourceQuality "1"]
[TimeControl "5400+30"]

{[%evp 21,22,27,38]} 1. d4 {[%emt 0:00:04] Adhiban,Baskaran} d5 {[%emt 0:00:06]} 2. c4 {[%emt 0:00:09]} e6 {[%emt 0:00:04]} 3. Nc3 {[%emt 0:00:10]} Nf6 {[%emt 0:00:07]} 4. cxd5 {[%emt 0:00:12]} exd5 {[%emt 0:00:06]} 5. Bg5 {[%emt 0:00:13]} Be7 {[%emt 0:00:07]} 6. e3 {[%emt 0:00:11]} O-O {[%emt 0:00:17]} 7. Bd3 {[%emt 0:00:13]} Nbd7 {[%emt 0:00:37]} 8. Nf3 {[%emt 0:00:21]} b6 {[%emt 0:00:15]} 9. O-O {[%emt 0:00:28]} Bb7 {[%emt 0:00:07]} 10. Rc1 {[%emt 0:00:31]} h6 {[%emt 0:00:19]} 11. Bh4 {[%emt 0:00:28]} c5 {[%emt 0:00:16] [#]} {Predecessor:} 12. Bf5 $146 {D58: Queen's Gambit Declined: Tartakower Defence.} c4 13. b3 g6 14. Bb1 Rc8 15. bxc4 Rxc4 16. Bd3 Rc8 17. Qb3 a6 18. a4 Bd6 19. Rc2 Re8 20. Rfc1 {1-0 (46) Adhiban,B (2659)-Jumabayev,R (2654) Chess.com INT 2020 CBM 199 Extra [Adhiban,Baskaran]} 1/2-1/2

[Event "III GM Brena Baja-La Palma 2022"]
[Site "La Palma"]
[Date "2022.04.15"]
[Round "10.2"]
[White "Kurajica, Bojan"]
[Black "Pulvett Marin, Daniel Eduardo"]
[Result "1/2-1/2"]
[ECO "D14"]
[WhiteElo "2519"]
[BlackElo "2499"]
[Annotator "TA"]
[PlyCount "24"]
[EventDate "2022.04.01"]
[EventType "tourn"]
[EventCountry "ESP"]
[SourceTitle "playchess.com"]
[Source "ChessBase"]
[SourceQuality "1"]
[TimeControl "5400+30"]

{[%evp 22,24,0,0,10]} 1. d4 {[%emt 0:21:44]} d5 {[%emt 0:00:09]} 2. Nf3 {[%emt 0:00:08]} Nf6 {[%emt 0:00:17]} 3. c4 {[%emt 0:00:06]} c6 {[%emt 0:00:08]} 4. cxd5 {[%emt 0:00:09]} cxd5 {[%emt 0:00:09]} 5. Nc3 {[%emt 0:00:05]} Nc6 {[%emt 0:00:09]} 6. Bf4 {[%emt 0:00:31]} Bf5 {[%emt 0:00:14]} 7. e3 {[%emt 0:00:39]} e6 {[%emt 0:00:13]} 8. Bd3 {[%emt 0:00:11]} Bxd3 {[%emt 0:00:12]} 9. Qxd3 {[%emt 0:00:06]} Bd6 {[%emt 0:00:08]} 10. Bxd6 {[%emt 0:00:12]} Qxd6 {[%emt 0:00:08]} 11. O-O {[%emt 0:00:05]} O-O {[%emt 0:00:17]} 12. Rac1 {[%emt 0:00:10] [#]} Qd8 $146 {[%emt 0:00:46] A rather calm draw. D14: Slav Defence: Exchange variation with ...Bf5.} ({Predecessor:} 12... Rac8 13. h3 h6 14. g3 g6 15. Kg2 Kg7 16. Rfd1 Rfd8 17. Qb1 Qb8 18. Qd3 Qd6 19. Qb1 Qb8 20. Qd3 Qd6 21. Qb1 {½-½ (21) Iturrizaga Bonelli,E (2605)-Santos Latasa,J (2616) Linares 2021}) 1/2-1/2